bitfinex-derivatives/quotes_SOLF0:USTF0_20260126
["timestamp","ask_amount","ask_price","bid_price","bid_amount"]
[1769442997816,165.42460381,123.6,123.53,50.04528345]
[1769442998120,7.2903,123.57,123.53,50.04528345]
[1769443002720,7.2903,123.57,123.53,47.64233144]
[1769443015830,7.2903,123.57,123.53,50.04528345]
[1769443016025,7.2903,123.57,123.54,2.40295201]
[1769443016226,7.2903,123.57,123.53,50.04528345]
[1769443017327,7.2903,123.57,123.53,47.64233144]
[1769443018331,7.2908,123.56,123.53,47.64233144]
[1769443018630,49.77270922,123.57,123.5,2.40295201]
[1769443020025,7.2915,123.55,123.5,2.40295201]
[1769443020628,7.2915,123.55,123.5,54.82634583]
[1769443021121,7.2915,123.55,123.5,52.42339382]
[1769443021327,52.17566123,123.56,123.49,2.40295201]
[1769443021518,52.17566123,123.56,123.47,7.2959]
[1769443021519,52.17566123,123.54,123.47,52.42339382]
[1769443021726,7.2932,123.52,123.47,52.42339382]
[1769443022629,52.17566123,123.53,123.47,52.42339382]
[1769443022933,49.77270922,123.53,123.47,52.42339382]
[1769443023832,52.17566123,123.53,123.47,52.42339382]
[1769443024023,59.46826123,123.53,123.47,52.42339382]
[1769443024220,57.06530922,123.53,123.47,52.42339382]
[1769443027333,7.2934,123.52,123.47,52.42339382]
[1769443027735,57.06610922,123.52,123.47,52.42339382]
[1769443028331,7.2937,123.51,123.44,7.2977]
[1769443028533,7.2937,123.51,123.43,54.82634583]
[1769443028534,2.40295201,123.5,123.43,54.82634583]
[1769443028737,52.17566123,123.49,123.43,52.42339382]
[1769443029036,7.2956,123.48,123.43,52.42339382]
[1769443029736,7.2956,123.48,123.43,54.82634583]
[1769443030035,7.2956,123.48,123.43,52.42339382]
[1769443030533,7.2956,123.48,123.43,54.82634583]
[1769443031223,163.23430922,123.51,123.43,54.82634583]
[1769443031428,52.17566123,123.5,123.44,52.42339382]
[1769443032237,7.2958,123.48,123.44,52.42339382]
[1769443035438,7.295,123.49,123.44,54.82634583]
[1769443035634,113.4127,123.57,123.42,7.2989]
[1769443035635,165.60946123,123.54,123.46,54.82634583]
[1769443035937,49.77270922,123.54,123.48,54.82634583]
[1769443036137,49.77270922,123.54,123.49,2.40295201]
[1769443036538,49.77270922,123.54,123.48,54.82634583]
[1769443037342,488.87506123,123.56,123.48,54.82634583]
[1769443037541,488.87506123,123.56,123.49,2.40295201]
[1769443037742,488.87506123,123.56,123.49,54.82634583]
[1769443038844,53.93704547,123.55,123.49,52.42339382]
[1769443039045,7.292,123.54,123.49,54.82634583]
[1769443041544,7.292,123.54,123.49,52.42339382]
[1769443043241,7.292,123.54,123.49,54.82634583]
[1769443044050,330.571,123.56,123.51,52.87267849]
[1769443045138,323.28,123.56,123.52,52.87267849]
[1769443045742,323.28,123.56,123.52,50.46972648]
[1769443045940,330.5709,123.56,123.52,50.46972648]
[1769443046449,7.2914,123.55,123.52,38.13422648]
[1769443046945,7.2914,123.55,123.51,2.40295201]
[1769443047156,7.292,123.54,123.49,2.40295201]
[1769443048445,7.292,123.54,123.49,52.87267849]
[1769443049051,7.2927,123.53,123.49,50.46972648]
[1769443050948,7.2927,123.53,123.49,52.87267849]
[1769443051243,7.2927,123.53,123.49,50.46972648]
[1769443051945,7.2934,123.52,123.46,52.87267849]
[1769443052147,7.2934,123.52,123.46,50.46972648]
[1769443052148,61.23044547,123.52,123.46,50.46972648]
[1769443052350,53.93704547,123.52,123.46,50.46972648]
[1769443052546,53.93704547,123.52,123.46,52.87267849]
[1769443054051,7.2938,123.51,123.46,52.87267849]
[1769443054356,53.93704547,123.52,123.47,52.87267849]
[1769443055149,53.93704547,123.52,123.46,52.87267849]
[1769443055752,7.2938,123.51,123.46,52.87267849]
[1769443056252,7.2945,123.5,123.45,2.40295201]
[1769443056451,7.2945,123.5,123.45,52.87267849]
[1769443057345,7.2945,123.5,123.45,50.46972648]
[1769443057850,7.2945,123.5,123.45,52.87605939]
[1769443058849,7.2945,123.5,123.45,50.46972648]
[1769443059651,61.23154547,123.5,123.45,50.46972648]
[1769443062161,61.23214547,123.49,123.43,52.87605939]
[1769443062351,56.34337838,123.49,123.43,50.46972648]
[1769443062751,7.2962,123.47,123.43,50.46972648]
[1769443063154,56.34337838,123.49,123.43,50.46972648]
[1769443064454,7.2955,123.48,123.43,50.46972648]
[1769443065258,7.2955,123.48,123.43,52.87605939]
[1769443066254,7.2949,123.49,123.45,2.40633291]
[1769443066457,7.2949,123.49,123.45,52.87605939]
[1769443066760,7.2949,123.49,123.45,50.46972648]
[1769443067757,384.49144547,123.5,123.45,52.87605939]
[1769443067951,384.49144547,123.5,123.45,50.46972648]
[1769443068352,7.2936,123.52,123.47,52.87605939]
[1769443068550,379.39318258,123.55,123.48,52.87605939]
[1769443068948,7.2925,123.54,123.48,52.87605939]
[1769443069348,7.2925,123.54,123.49,2.40633291]
[1769443069553,7.2925,123.54,123.49,56.93473116]
[1769443070151,7.2925,123.54,123.5,2.40633291]
[1769443070356,7.2925,123.54,123.49,56.93473116]
[1769443072262,7.2925,123.54,123.49,54.52839825]
[1769443074161,7.2927,123.53,123.49,54.52839825]
[1769443074760,60.97954967,123.53,123.47,2.40633291]
[1769443074966,56.09318258,123.53,123.46,54.52839825]
[1769443075262,53.68684967,123.53,123.47,2.40633291]
[1769443076057,7.2938,123.51,123.47,2.40633291]
[1769443076258,7.2938,123.51,123.46,56.93473116]
[1769443077062,7.2938,123.51,123.47,56.93473116]
[1769443077265,7.2931,123.53,123.48,56.93473116]
[1769443077566,7.2931,123.53,123.49,2.40633291]
[1769443080472,7.2931,123.53,123.48,56.93473116]
[1769443080674,7.2932,123.52,123.48,56.93473116]
[1769443081069,323.3,123.55,123.48,56.93473116]
[1769443081367,323.3,123.55,123.5,54.52839825]
[1769443081564,330.5919,123.55,123.51,2.40633291]
[1769443082375,7.2919,123.55,123.51,56.93473116]
[1769443082674,376.94684967,123.58,123.52,2.40633291]
[1769443083175,376.94684967,123.58,123.51,56.93473116]
[1769443083474,7.2915,123.55,123.51,56.93473116]
[1769443084175,7.2915,123.55,123.5,2.40633291]
[1769443085481,7.2923,123.54,123.5,2.40633291]
[1769443085785,53.68684967,123.56,123.49,56.93473116]
[1769443086183,56.09318258,123.56,123.49,56.93473116]
[1769443086380,167.11254967,123.55,123.49,3.291e-05]
[1769443086581,53.68684967,123.54,123.49,3.291e-05]
[1769443086785,7.2938,123.51,123.44,7.2978]
[1769443087084,53.68684967,123.52,123.45,56.93473116]
[1769443087888,53.68684967,123.52,123.46,2.40633291]
[1769443088084,53.68684967,123.52,123.47,2.40633291]
[1769443088490,53.68684967,123.52,123.46,56.93473116]
[1769443089890,7.2937,123.51,123.46,56.93473116]
[1769443090092,7.2937,123.51,123.47,56.93473116]
[1769443090292,323.24,123.53,123.48,2.40633291]
[1769443090590,7.2932,123.52,123.49,2.40633291]
[1769443091186,323.24,123.53,123.49,2.40633291]
[1769443091391,113.4257,123.55,123.5,2.40633291]
[1769443091991,113.4257,123.55,123.49,56.93473116]
[1769443092183,167.11254967,123.55,123.49,54.52839825]
[1769443092385,167.11254967,123.55,123.49,56.93473116]
[1769443092684,7.2932,123.52,123.49,56.93473116]
[1769443093085,7.2932,123.52,123.49,54.52839825]
[1769443096684,53.68684967,123.55,123.49,54.52839825]
[1769443097192,53.68684967,123.55,123.49,56.93473116]
[1769443097390,7.2927,123.53,123.49,56.93473116]
[1769443099888,7.2927,123.53,123.49,54.52839825]
[1769443100696,7.2927,123.53,123.49,56.93473116]
[1769443102595,51.84038962,123.58,123.52,54.59026909]
[1769443103197,7.2905,123.57,123.52,54.59026909]
[1769443103392,7.2905,123.57,123.53,2.40633291]
[1769443104994,51.84038962,123.58,123.54,2.40633291]
[1769443104995,7.2897,123.58,123.54,2.40633291]
[1769443105496,7.2897,123.58,123.54,54.59026909]
[1769443105691,7.2891,123.59,123.54,54.59026909]
[1769443105898,7.2891,123.59,123.55,2.40633291]
[1769443106291,7.2891,123.59,123.54,54.59026909]
[1769443108389,51.84038962,123.59,123.51,52.18393618]
[1769443108594,51.84038962,123.59,123.52,2.40633291]
[1769443109997,7.2908,123.56,123.52,2.40633291]
[1769443110389,7.2908,123.56,123.51,54.59026909]
[1769443110591,7.2908,123.56,123.51,52.18393618]
[1769443112293,7.292,123.54,123.49,52.18393618]
[1769443112796,7.292,123.54,123.49,54.59026909]
[1769443113998,51.84038962,123.52,123.42,52.18393618]
[1769443114200,54.24672253,123.51,123.44,54.59026909]
[1769443114805,51.84038962,123.51,123.45,2.40633291]
[1769443115008,51.84038962,123.51,123.45,54.59026909]
[1769443115699,51.84038962,123.51,123.45,52.18393618]
[1769443116403,7.2937,123.52,123.45,54.59026909]
[1769443116804,7.2937,123.52,123.46,54.59026909]
[1769443117104,7.2924,123.54,123.49,54.59026909]
[1769443117312,51.84038962,123.55,123.49,54.59026909]
[1769443117603,51.84038962,123.55,123.49,54.58842455]
[1769443118408,7.2921,123.54,123.49,2.40448837]
[1769443118599,7.2921,123.54,123.47,61.88442455]
[1769443119900,7.2921,123.54,123.48,54.58842455]
[1769443121205,7.2926,123.53,123.48,52.18393618]
[1769443121706,59.13298962,123.53,123.46,54.58842455]
[1769443121908,61.53747799,123.53,123.46,54.58842455]
[1769443122806,7.2932,123.52,123.46,54.58842455]
[1769443123106,7.2932,123.52,123.46,52.18393618]
[1769443124606,7.2932,123.52,123.46,54.58842455]
[1769443125000,51.84038962,123.53,123.46,54.58842455]
[1769443125207,7.2926,123.53,123.49,54.58842455]
[1769443126104,7.2917,123.55,123.5,54.58842455]
[1769443126499,7.2917,123.55,123.5,52.18393618]
[1769443126699,7.2917,123.55,123.5,54.58842455]
[1769443127007,7.2907,123.57,123.51,54.58842455]
[1769443127209,7.2907,123.57,123.52,2.40448837]
[1769443127610,7.2908,123.56,123.51,52.18393618]
[1769443131406,7.2908,123.56,123.51,54.58842455]
[1769443132215,7.2914,123.55,123.51,52.18393618]
[1769443133429,59.33371636,123.54,123.47,63.05380343]
[1769443133617,59.33371636,123.54,123.47,65.4582918]
[1769443133807,7.2922,123.54,123.49,58.1625918]
[1769443134007,7.2922,123.54,123.47,7.2957]
[1769443134008,7.2922,123.54,123.5,58.1625918]
[1769443136810,7.2922,123.54,123.49,58.1625918]
[1769443138120,52.04151636,123.54,123.47,55.75810343]
[1769443138415,54.44600473,123.54,123.47,58.1625918]
[1769443139110,52.04151636,123.54,123.47,58.1625918]
[1769443140023,7.2933,123.52,123.47,58.1625918]
[1769443142807,7.2933,123.52,123.48,2.40448837]
[1769443143621,7.2933,123.52,123.47,58.1625918]
[1769443143918,7.2933,123.52,123.47,55.75810343]
[1769443145120,52.04151636,123.51,123.45,55.75810343]
[1769443145314,52.04151636,123.51,123.44,2.40448837]
[1769443145514,52.04151636,123.51,123.44,58.1625918]
[1769443145820,54.44600473,123.51,123.44,58.1625918]
[1769443146222,7.2943,123.5,123.44,58.1625918]
[1769443149826,7.2943,123.5,123.45,2.40448837]
[1769443150023,52.04151636,123.51,123.41,62.0]
[1769443150024,7.2938,123.51,123.46,58.1625918]
[1769443150230,7.2938,123.51,123.47,2.40448837]
[1769443150527,7.2938,123.51,123.41,175.5475]
[1769443150528,52.04151636,123.54,123.48,58.1625918]
[1769443150726,52.04151636,123.54,123.49,2.40448837]
[1769443151927,7.2926,123.53,123.49,2.40448837]
[1769443154029,7.2926,123.53,123.48,58.1625918]
[1769443154222,7.2926,123.53,123.48,55.75810343]
[1769443154522,7.2937,123.51,123.46,55.75810343]
[1769443154726,7.2937,123.51,123.46,58.1625918]
[1769443158425,52.04151636,123.5,123.44,58.1625918]
[1769443160033,7.295,123.49,123.44,58.1625918]
[1769443160836,7.2944,123.5,123.44,58.1625918]
[1769443161135,7.2944,123.5,123.45,59.44534656]
[1769443163336,7.2944,123.5,123.45,57.04085819]
[1769443164235,7.295,123.49,123.45,57.04085819]
[1769443165836,7.2956,123.48,123.43,57.04085819]
[1769443166244,7.2956,123.48,123.43,59.44534656]
[1769443170650,7.2949,123.49,123.43,66.74384656]
[1769443170945,7.2949,123.49,123.45,57.04085819]
[1769443171652,7.2957,123.48,123.43,59.44534656]
[1769443173453,7.2957,123.48,123.43,57.04085819]
[1769443173753,7.2963,123.47,123.42,2.40448837]
[1769443174053,7.2963,123.47,123.42,59.44534656]
[1769443175949,7.2963,123.47,123.42,57.04085819]
[1769443176254,7.2967,123.46,123.42,57.04085819]
[1769443177248,60.10483721,123.48,123.42,57.04085819]
[1769443180360,60.10483721,123.48,123.42,59.44833394]
[1769443180862,60.10483721,123.48,123.43,2.40747575]
[1769443181357,60.10483721,123.48,123.42,59.44833394]
[1769443181557,7.2959,123.48,123.43,2.40747575]
[1769443181762,7.2959,123.48,123.44,57.04085819]
[1769443181962,7.295,123.49,123.44,57.04085819]
[1769443182159,7.295,123.49,123.45,2.40747575]
[1769443182460,60.10323721,123.5,123.45,59.44833394]
[1769443182659,226.8412,123.56,123.47,57.04085819]
[1769443182660,55.21641296,123.54,123.47,57.04085819]
[1769443183760,7.2933,123.52,123.47,59.44833394]
[1769443184060,7.2933,123.52,123.48,2.40747575]
[1769443184263,7.2933,123.52,123.47,59.44833394]
[1769443186756,7.2926,123.53,123.47,66.74433394]
[1769443187459,7.2926,123.53,123.47,59.44833394]
[1769443188067,7.2932,123.52,123.47,59.44833394]
[1769443190167,7.2939,123.51,123.47,59.44833394]
[1769443190469,7.2939,123.51,123.47,57.04085819]
[1769443191867,7.2939,123.51,123.47,59.44833394]
[1769443195170,7.2939,123.51,123.47,57.04085819]
[1769443195672,55.34846111,123.55,123.49,59.60984964]
[1769443196263,7.2926,123.53,123.49,59.60984964]
[1769443199266,168.76366111,123.56,123.5,2.40747575]
[1769443199464,171.17113686,123.56,123.49,59.60984964]
[1769443199773,55.34846111,123.55,123.49,57.20237389]
[1769443200865,7.292,123.54,123.49,57.20237389]
[1769443201071,55.34846111,123.55,123.49,57.20237389]
[1769443201970,168.76366111,123.56,123.49,57.20237389]
[1769443202372,55.34846111,123.56,123.49,57.20237389]
[1769443202570,55.34846111,123.59,123.5,57.20237389]
[1769443202768,55.34846111,123.57,123.5,57.20237389]
[1769443202970,62.63916111,123.57,123.5,64.49647389]
[1769443203171,7.2907,123.57,123.5,57.20237389]
[1769443203577,7.2914,123.55,123.5,57.20237389]
[1769443203776,55.34846111,123.56,123.5,57.20237389]
[1769443204270,323.26,123.6,123.5,57.20237389]
[1769443204477,175.0,123.8,123.5,57.20237389]
[1769443204976,114.63132312,123.7,123.5,57.20237389]
[1769443205274,113.3321,123.65,123.57,57.20237389]
[1769443205469,14.5675,123.68,123.48,113.4795]
[1769443205470,55.34846111,123.6,123.48,113.4795]
[1769443205675,168.73666111,123.59,123.46,392.3399]
[1769443205872,55.34846111,123.58,123.46,392.3399]
[1769443206179,168.69466111,123.64,123.51,113.4549]
[1769443206383,168.69466111,123.64,123.52,113.4492]
[1769443206867,7.2878,123.61,123.55,7.2914]
[1769443207277,168.69466111,123.64,123.55,7.2914]
[1769443207577,55.34846111,123.64,123.56,64.49307389]
[1769443207768,55.34846111,123.64,123.56,57.20237389]
[1769443208369,323.24,123.65,123.56,64.49297389]
[1769443208568,113.3398,123.64,123.56,57.20237389]
[1769443208766,168.66576111,123.67,123.56,57.20237389]
[1769443208976,168.66576111,123.67,123.58,57.20237389]
[1769443208977,55.34846111,123.67,123.58,57.20237389]
[1769443209171,7.2857,123.65,123.58,57.20237389]
[1769443209575,113.3313,123.65,123.58,57.20237389]
[1769443209774,62.63526111,123.63,123.55,57.20237389]
[1769443210281,55.34846111,123.67,123.57,57.20237389]
[1769443210878,168.66316111,123.67,123.57,64.49207389]
[1769443211078,55.34846111,123.66,123.57,64.49207389]
[1769443211870,7.2856,123.65,123.57,64.49207389]
[1769443212275,55.34846111,123.65,123.57,57.20237389]
[1769443212581,7.2868,123.63,123.57,57.20237389]
[1769443212881,55.34846111,123.61,123.54,57.20237389]
[1769443214480,378.46846111,123.63,123.54,57.20237389]
[1769443214683,55.34846111,123.62,123.54,57.20237389]
[1769443215382,55.34846111,123.62,123.54,64.49427389]
[1769443215680,55.34846111,123.62,123.54,57.20237389]
[1769443216081,323.12,123.63,123.56,57.20237389]
[1769443216278,378.46846111,123.63,123.56,57.20237389]
[1769443216675,55.34846111,123.63,123.56,57.20237389]
[1769443216879,55.34846111,123.65,123.56,57.20237389]
[1769443217380,62.63416111,123.65,123.58,57.20237389]
[1769443217680,378.42846111,123.67,123.58,57.20237389]
[1769443218185,7.285,123.66,123.58,64.49187389]
[1769443219181,7.2855,123.65,123.58,64.49187389]
[1769443219689,65.7555465,123.65,123.58,57.20237389]
[1769443219985,7.2861,123.64,123.58,57.20237389]
[1769443221886,7.2853,123.66,123.58,64.49177389]
[1769443222287,381.5500465,123.67,123.58,64.49177389]
[1769443222990,7.2861,123.64,123.58,57.20237389]
[1769443223987,58.4700465,123.63,123.56,60.76327456]
[1769443224187,58.4700465,123.63,123.56,53.47297456]
[1769443225091,58.4700465,123.62,123.54,60.76447456]
[1769443225391,58.4700465,123.61,123.52,53.47297456]
[1769443225779,58.4700465,123.6,123.52,53.47297456]
[1769443225980,58.4700465,123.59,123.52,53.47297456]
[1769443226294,58.4700465,123.62,123.52,53.47297456]
[1769443226985,7.2882,123.61,123.54,60.76467456]
[1769443228592,58.4700465,123.62,123.54,60.76467456]
[1769443229891,7.2879,123.61,123.54,53.47297456]
[1769443230393,7.2885,123.6,123.54,53.47297456]
[1769443231491,58.4700465,123.6,123.52,53.47297456]
[1769443232082,58.4700465,123.59,123.52,53.47297456]
[1769443232281,58.4700465,123.58,123.49,53.47297456]
[1769443232492,58.4700465,123.57,123.49,53.47297456]
[1769443232797,58.4700465,123.55,123.47,53.47297456]
[1769443233597,65.7618465,123.55,123.47,53.47297456]
[1769443233984,58.4700465,123.55,123.47,53.47297456]
[1769443234295,7.2927,123.53,123.47,53.47297456]
[1769443234588,58.4700465,123.54,123.47,53.47297456]
[1769443235397,171.8871465,123.56,123.47,53.47297456]
[1769443235690,58.4700465,123.55,123.47,53.47297456]
[1769443235893,7.2922,123.54,123.47,53.47297456]
[1769443236995,171.8691465,123.58,123.47,53.47297456]
[1769443237186,58.4700465,123.58,123.47,53.47297456]
[1769443238684,7.2908,123.56,123.49,7.2949]
[1769443238891,7.2908,123.56,123.49,60.76787456]
[1769443241793,7.2904,123.57,123.5,7.2942]
[1769443242004,58.4700465,123.61,123.51,53.47297456]
[1769443242295,58.4700465,123.64,123.55,53.47297456]
[1769443242487,171.7897465,123.67,123.57,60.76307456]
[1769443242694,381.5900465,123.69,123.59,53.47297456]
[1769443242992,58.4700465,123.72,123.6,53.47297456]
[1769443243187,113.2515,123.74,123.63,53.47297456]
[1769443243392,7.2821,123.71,123.63,53.47297456]
[1769443244189,7.2828,123.7,123.63,53.47297456]
[1769443244387,58.4700465,123.71,123.63,53.47297456]
[1769443244589,171.7215465,123.74,123.64,60.75897456]
[1769443244794,7.2808,123.73,123.64,53.47297456]
[1769443244995,58.4700465,123.74,123.64,53.47297456]
[1769443245198,58.4700465,123.74,123.65,53.47297456]
[1769443245795,65.7504465,123.74,123.65,60.75797456]
[1769443246593,65.7504465,123.74,123.63,175.346]
[1769443246594,58.4700465,123.73,123.64,53.47297456]
[1769443247294,323.12,123.75,123.64,53.47297456]
[1769443247500,323.12,123.75,123.65,53.47297456]
[1769443247700,381.5900465,123.75,123.66,60.75767456]
[1769443248393,388.8698465,123.75,123.66,60.75767456]
[1769443249099,7.2803,123.74,123.66,60.75767456]
[1769443249502,55.72748241,123.73,123.64,65.96848059]
[1769443249798,7.2816,123.72,123.64,58.68258059]
[1769443250000,63.00908241,123.72,123.64,58.68258059]
[1769443250506,7.2823,123.71,123.64,58.68258059]
[1769443251404,7.2811,123.73,123.64,65.96848059]
[1769443252804,63.00858241,123.73,123.64,65.96848059]
[1769443254906,7.2811,123.73,123.66,58.68258059]
[1769443255404,330.4001,123.75,123.66,58.68258059]
[1769443256312,330.4001,123.75,123.67,65.96678059]
[1769443257610,7.2801,123.75,123.67,65.96678059]
[1769443259306,55.72748241,123.75,123.67,58.68258059]
[1769443260410,55.72748241,123.75,123.64,65.96818059]
[1769443260411,7.2816,123.72,123.64,65.96818059]
[1769443260810,55.72748241,123.71,123.57,113.3953]
[1769443261006,63.01078241,123.69,123.61,58.68258059]
[1769443261407,7.285,123.66,123.59,7.2886]
[1769443261609,55.72748241,123.66,123.59,65.97118059]
[1769443261809,55.72748241,123.66,123.59,58.68258059]
[1769443262206,55.72748241,123.66,123.56,58.68258059]
[1769443262806,7.2864,123.64,123.56,58.68258059]
[1769443263312,63.01288241,123.66,123.57,65.97268059]
[1769443264215,55.72748241,123.65,123.55,58.68258059]
[1769443264718,55.72748241,123.65,123.57,58.68258059]
[1769443265212,55.72748241,123.65,123.57,65.97268059]
[1769443265813,55.72748241,123.65,123.58,65.97198059]
[1769443266412,7.2854,123.66,123.6,58.68258059]
[1769443266708,169.00308241,123.71,123.6,58.68258059]
[1769443267109,55.72748241,123.7,123.61,65.97028059]
[1769443267718,63.01138241,123.68,123.59,7.2886]
[1769443267905,63.01138241,123.68,123.59,58.68258059]
[1769443268911,63.01138241,123.68,123.61,7.2878]
[1769443269114,55.72748241,123.68,123.61,65.97038059]
[1769443270116,7.2833,123.69,123.62,65.96978059]
[1769443271014,63.01078241,123.69,123.62,65.96978059]
[1769443271509,63.01138241,123.68,123.6,58.68258059]
[1769443271910,55.72748241,123.68,123.6,58.68258059]
[1769443272312,7.2843,123.67,123.6,65.97098059]
[1769443272815,55.72748241,123.7,123.6,58.68258059]
[1769443273014,55.72748241,123.7,123.6,113.3735]
[1769443273015,63.01058241,123.7,123.6,113.3735]
[1769443273313,55.72748241,123.76,123.65,58.68258059]
[1769443273518,55.72748241,123.76,123.66,58.68258059]
[1769443273714,7.2796,123.75,123.68,7.2837]
[1769443274016,7.2796,123.75,123.68,65.96628059]
[1769443274814,7.2802,123.74,123.68,65.96628059]
[1769443275212,7.2802,123.74,123.68,58.68258059]
[1769443276413,7.2808,123.73,123.65,58.68258059]
[1769443276810,55.72748241,123.74,123.65,58.68258059]
[1769443277409,63.00828241,123.74,123.66,65.96748059]
[1769443277609,55.72748241,123.74,123.66,65.96748059]
[1769443277812,55.72748241,123.76,123.66,58.68258059]
[1769443278011,63.00698241,123.76,123.69,7.283]
[1769443278815,63.00698241,123.76,123.69,63.2337151]
[1769443279015,53.2755213,123.79,123.7,55.9507151]
[1769443280315,7.279,123.76,123.7,55.9507151]
[1769443282522,53.2755213,123.76,123.67,117.9507151]
[1769443282722,53.2755213,123.76,123.67,55.9507151]
[1769443283325,7.2808,123.73,123.67,55.9507151]
[1769443284525,7.2815,123.72,123.67,55.9507151]
[1769443286318,53.2755213,123.73,123.65,55.9507151]
[1769443286528,166.5349213,123.73,123.65,55.9507151]
[1769443287229,53.2755213,123.73,123.65,55.9507151]
[1769443288022,7.2827,123.7,123.65,55.9507151]
[1769443290323,53.2755213,123.71,123.62,55.9507151]
[1769443290528,7.2844,123.67,123.6,55.9507151]
[1769443292232,7.2836,123.69,123.6,63.2390151]
[1769443292424,53.2755213,123.75,123.62,55.9507151]
[1769443292733,166.5347213,123.73,123.62,55.9507151]
[1769443292929,113.2756,123.71,123.64,55.9507151]
[1769443293632,7.2838,123.68,123.64,55.9507151]
[1769443294026,113.2756,123.71,123.64,55.9507151]
[1769443294227,7.283,123.7,123.64,55.9507151]
[1769443294426,166.5437213,123.72,123.64,55.9507151]
[1769443294926,7.2832,123.69,123.64,55.9507151]
[1769443295630,7.2832,123.69,123.59,113.3811]
[1769443295631,53.2755213,123.69,123.62,55.9507151]
[1769443296135,166.5555213,123.71,123.62,55.9507151]
[1769443296825,53.2755213,123.69,123.62,55.9507151]
[1769443297232,53.2755213,123.68,123.59,117.9507151]
[1769443297426,7.2851,123.66,123.59,55.9507151]
[1769443297732,53.2755213,123.66,123.59,55.9507151]
[1769443299041,7.2864,123.64,123.59,55.9507151]
[1769443299336,166.5735213,123.69,123.59,55.9507151]
[1769443299538,7.2844,123.67,123.59,55.9507151]
[1769443300237,7.285,123.66,123.59,55.9507151]
[1769443301535,53.2755213,123.66,123.59,55.9507151]
[1769443301942,166.6001213,123.66,123.59,55.9507151]
[1769443302140,7.2867,123.63,123.56,55.9507151]
[1769443303229,7.2867,123.63,123.56,63.2414151]
[1769443303430,166.6001213,123.66,123.56,55.9507151]
[1769443304034,53.2755213,123.65,123.56,55.9507151]
[1769443304537,53.2755213,123.65,123.57,55.9507151]
[1769443304740,7.2873,123.62,123.57,55.9507151]
[1769443306444,7.2879,123.61,123.57,55.9507151]
[1769443306737,7.2872,123.63,123.57,55.9507151]
[1769443307332,7.2876,123.62,123.57,55.9507151]
[1769443310046,7.2866,123.64,123.57,55.9507151]
[1769443310945,7.2866,123.64,123.57,63.2408151]
[1769443311935,7.2867,123.63,123.57,55.9507151]
[1769443312747,7.2867,123.63,123.57,63.2408151]
[1769443313750,7.2867,123.63,123.57,55.9507151]
[1769443317044,7.2867,123.63,123.57,63.2409151]
[1769443317446,7.2867,123.63,123.57,55.9507151]
[1769443317644,50.80464738,123.64,123.55,50.57381832]
[1769443317947,164.13944738,123.65,123.56,57.86451832]
[1769443318847,50.80464738,123.66,123.58,50.57381832]
[1769443319750,7.2867,123.63,123.58,50.57381832]
[1769443319949,50.80464738,123.66,123.58,50.57381832]
[1769443320249,7.2861,123.64,123.58,50.57381832]
[1769443320454,50.80464738,123.64,123.58,50.57381832]
[1769443320650,50.80464738,123.64,123.54,50.57381832]
[1769443320954,7.2872,123.63,123.56,50.57381832]
[1769443321345,50.80464738,123.64,123.56,50.57381832]
[1769443321651,7.2875,123.62,123.56,50.57381832]
[1769443322047,50.80464738,123.62,123.54,50.57381832]
[1769443322255,7.2891,123.59,123.54,50.57381832]
[1769443322454,50.80464738,123.6,123.54,50.57381832]
[1769443322947,7.2897,123.58,123.51,57.86741832]
[1769443323154,50.80464738,123.59,123.51,50.57381832]
[1769443323558,50.80464738,123.61,123.53,50.57381832]
[1769443324157,164.15574738,123.63,123.53,50.57381832]
[1769443324349,50.80464738,123.62,123.53,50.57381832]
[1769443324850,7.2885,123.6,123.53,57.86581832]
[1769443325054,50.80464738,123.62,123.53,50.57381832]
[1769443325444,50.80464738,123.62,123.54,112.57381832]
[1769443325645,7.2885,123.6,123.54,50.57381832]
[1769443327354,50.80464738,123.62,123.54,50.57381832]
[1769443327355,7.289,123.59,123.54,50.57381832]
[1769443327953,7.2884,123.6,123.54,50.57381832]
[1769443330357,50.80464738,123.62,123.54,57.86571832]
[1769443330557,164.14704738,123.64,123.54,57.86571832]
[1769443331356,7.2879,123.61,123.54,57.86571832]
[1769443331960,7.2875,123.62,123.54,57.86571832]
[1769443332152,50.80464738,123.63,123.54,57.86571832]
[1769443333061,50.80464738,123.63,123.54,50.57381832]
[1769443335261,7.2879,123.61,123.54,50.57381832]
[1769443335755,7.2879,123.61,123.54,57.86551832]
[1769443339364,7.2885,123.6,123.54,50.57381832]
[1769443339865,50.80464738,123.63,123.54,50.57381832]
[1769443340061,373.10401789,123.66,123.55,51.27533831]
[1769443340261,50.16401789,123.66,123.56,51.27533831]